fUST/lending_fUST_20260224
["ID","MTS","AMOUNT","RATE_DAILY","PERIOD"]
[406402411,1771870386049,-151.0,0.00038356,120]
[406402412,1771870386072,-169.508869,0.00038356,120]
[406402413,1771870386097,-151.0,0.00038356,120]
[406402414,1771870386122,-151.0,0.00038356,120]
[406402415,1771870386150,-864.0,0.00038795,60]
[406402416,1771870386175,-20536.9,0.000388,14]
[406402417,1771870386199,-10000.0,0.00039,60]
[406402418,1771870386222,-584.52,0.000398,120]
[406402419,1771870386246,-2580.29,0.0003981,60]
[406402420,1771870386268,-55288.70699269,0.0004,120]
[406402421,1771870386299,-21492.65823327,0.0004,30]
[406402422,1771870386327,-151.0,0.0004,120]
[406402423,1771870386352,-153.859519,0.0004,120]
[406402424,1771870386376,-151.0,0.0004,120]
[406402425,1771870386401,-151.0,0.0004,120]
[406402426,1771870386428,-490.1,0.0004,120]
[406402427,1771870386454,-500.0,0.0004038,10]
[406402428,1771870386482,-186.0,0.000408,30]
[406402429,1771870386508,-620.69,0.00040993,120]
[406402430,1771870386532,-1000.0,0.00041,120]
[406402431,1771870386557,-215.21,0.00041096,120]
[406402432,1771870386582,-483.50887,0.00041096,120]
[406402433,1771870386606,-483.50887,0.00041096,120]
[406402434,1771870386636,-483.50887,0.00041096,120]
[406402435,1771870386662,-483.50887,0.00041096,120]
[406402436,1771870386686,-483.50887,0.00041096,120]
[406402437,1771870386710,-483.50887,0.00041096,120]
[406402438,1771870386733,-483.50887,0.00041096,120]
[406402439,1771870386758,-483.50887,0.00041096,120]
[406402440,1771870386782,-483.50887,0.00041096,120]
[406402441,1771870386806,-483.50887,0.00041096,120]
[406402442,1771870386829,-483.50887,0.00041096,120]
[406402443,1771870386852,-483.50887,0.00041096,120]
[406402444,1771870386875,-483.50887,0.00041096,120]
[406402445,1771870386900,-483.50887,0.00041096,120]
[406402446,1771870386923,-483.50887,0.00041096,120]
[406402447,1771870386945,-483.50887,0.00041096,120]
[406402448,1771870386969,-483.50887,0.00041096,120]
[406402449,1771870386992,-483.50887,0.00041096,120]
[406402450,1771870387018,-483.50887,0.00041096,120]
[406402451,1771870387041,-483.508864,0.00041096,120]
[406402452,1771870387065,-500.0,0.00041096,15]
[406402453,1771870387090,-500.0,0.00041096,15]
[406402454,1771870387114,-500.0,0.00041096,15]
[406402455,1771870387140,-500.0,0.00041096,15]
[406402456,1771870387164,-500.0,0.00041096,15]
[406402457,1771870387189,-500.0,0.00041096,15]
[406402458,1771870387217,-500.0,0.00041096,15]
[406402459,1771870387241,-500.0,0.00041096,15]
[406402460,1771870387266,-500.0,0.00041096,15]
[406402461,1771870387290,-500.0,0.00041096,15]
[406402462,1771870387314,-500.0,0.00041096,15]
[406402463,1771870387338,-500.0,0.00041096,15]
[406402464,1771870387363,-500.0,0.00041096,15]
[406402465,1771870387387,-500.0,0.00041096,15]
[406402466,1771870387516,-500.0,0.00041096,15]
[406402467,1771870387540,-500.0,0.00041096,15]
[406402468,1771870387564,-500.0,0.00041096,15]
[406402469,1771870387588,-500.0,0.00041096,15]
[406402470,1771870387612,-500.0,0.00041096,15]
[406402471,1771870387636,-500.0,0.00041096,15]
[406402472,1771870387659,-500.0,0.00041096,15]
[406402473,1771870387682,-500.0,0.00041096,15]
[406402474,1771870387705,-500.0,0.00041096,15]
[406402475,1771870387730,-500.0,0.00041096,15]
[406402476,1771870387754,-322.85541177,0.00041096,15]
[406402477,1771870387777,-500.0,0.00041096,15]
[406402478,1771870387801,-500.0,0.00041096,15]
[406402479,1771870387827,-500.0,0.00041096,15]
[406402480,1771870387851,-500.0,0.00041096,15]
[406402481,1771870387875,-500.0,0.00041096,15]
[406402482,1771870387900,-500.0,0.00041096,15]
[406402483,1771870387925,-500.0,0.00041096,15]
[406402484,1771870387951,-500.0,0.00041096,15]
[406402485,1771870387976,-500.0,0.00041096,15]
[406402486,1771870388002,-500.0,0.00041096,15]
[406402487,1771870388026,-500.0,0.00041096,15]
[406402488,1771870388053,-500.0,0.00041096,15]
[406402489,1771870388079,-500.0,0.00041096,15]
[406402490,1771870388103,-500.0,0.00041096,15]
[406402491,1771870388128,-500.0,0.00041096,15]
[406402492,1771870388155,-500.0,0.00041096,15]
[406402493,1771870388180,-500.0,0.00041096,15]
[406402494,1771870388204,-500.0,0.00041096,15]
[406402495,1771870388229,-500.0,0.00041096,15]
[406402496,1771870388257,-500.0,0.00041096,15]
[406402497,1771870388283,-500.0,0.00041096,15]
[406402498,1771870388309,-500.0,0.00041096,15]
[406402499,1771870388335,-500.0,0.00041096,15]
[406402500,1771870388360,-500.0,0.00041096,15]
[406402501,1771870388387,-500.0,0.00041096,15]
[406402502,1771870388413,-500.0,0.00041096,15]
[406402503,1771870388444,-500.0,0.00041096,15]
[406402504,1771870388469,-500.0,0.00041096,15]
[406402505,1771870388496,-500.0,0.00041096,15]
[406402506,1771870388521,-500.0,0.00041096,15]
[406402507,1771870388547,-500.0,0.00041096,15]
[406402508,1771870388578,-500.0,0.00041096,15]
[406402509,1771870388612,-500.0,0.00041096,15]
[406402510,1771870388647,-215.12883537,0.00041096,15]
[406402511,1771870388691,-500.0,0.00041096,15]
[406402512,1771870388723,-500.0,0.00041096,15]
[406402513,1771870388754,-500.0,0.00041096,15]
[406402514,1771870388786,-500.0,0.00041096,15]
[406402515,1771870388818,-500.0,0.00041096,15]
[406402516,1771870388850,-500.0,0.00041096,15]
[406402517,1771870388880,-500.0,0.00041096,15]
[406402518,1771870388910,-190.5698706,0.00041096,15]
[406402519,1771870388939,-500.0,0.00041096,15]
[406402520,1771870388971,-4782.67,0.000411,30]
[406402521,1771870389002,-248.98,0.000411,30]
[406402522,1771870389030,-168.95,0.000411,14]
[406402523,1771870389059,-5242.24,0.000411,14]
[406402524,1771870389090,-157.0,0.00041376,30]
[406402525,1771870389121,-300.0,0.00041859,52]
[406402526,1771870389150,-151.0,0.00042,120]
[406402527,1771870389182,-490.1,0.00042,120]
[406402528,1771870389216,-236.0,0.00042012,30]
[406402529,1771870389242,-1004.95,0.00042263,120]
[406402530,1771870389268,-200.0,0.00042461,30]
[406402531,1771870389298,-251.0,0.00042461,30]
[406402532,1771870389328,-10000.0,0.000425,120]
[406402533,1771870389356,-500.0,0.00042531,30]
[406402534,1771870389384,-1000.0,0.00042674,60]
[406402535,1771870389412,-500.0,0.00042732,30]
[406402536,1771870389440,-1004.95,0.00042763,120]
[406402537,1771870389467,-500.0,0.00042826,30]
[406402538,1771870389495,-20536.9,0.000429,14]
[406402539,1771870389522,-500.0,0.00043156,30]
[406402540,1771870389550,-12500.0,0.00043186,120]
[406402541,1771870389578,-1004.95,0.00043263,120]
[406402542,1771870389606,-167.26,0.000434,14]
[406402543,1771870389632,-248.98,0.000435,30]
[406402544,1771870389659,-5242.24,0.000435,14]
[406402545,1771870389686,-12500.0,0.00043686,120]
[406402546,1771870389711,-1004.95,0.00043763,120]
[406402547,1771870389738,-9258.08,0.00043835,120]
[406402548,1771870389867,-5495.726,0.00043836,120]
[406402549,1771870389891,-500.0,0.00043836,16]
[406402550,1771870389913,-500.0,0.00043836,16]
[406402551,1771870389936,-490.1,0.000441,120]
[406402552,1771870389958,-629.315983,0.00044176,30]
[406402553,1771870389980,-12500.0,0.00044186,120]
[406402554,1771870390002,-715.0,0.00044199,16]
[406402555,1771870390027,-1004.95,0.00044263,120]
[406402556,1771870390053,-2580.29,0.00044327,60]
[406402557,1771870390076,-151.0,0.00044341,30]
[406402558,1771870390100,-500.0,0.000445,30]
[406402559,1771870390125,-157.0,0.00044638,120]
[406402560,1771870390148,-12500.0,0.00044686,120]
[406402561,1771870390171,-500.0,0.00044707,10]
[406402562,1771870390194,-1004.95,0.00044763,120]
[406402563,1771870390217,-188.0,0.00045,30]
[406402564,1771870390240,-20536.9,0.00045,14]
[406402565,1771870390264,-150.0,0.00045115,120]
[406402566,1771870390287,-150.0,0.00045115,120]
[406402567,1771870390309,-12500.0,0.00045186,120]
[406402568,1771870390332,-150.0,0.00045238,30]
[406402569,1771870390355,-202.0,0.00045238,30]
[406402570,1771870390377,-1004.95,0.00045263,120]
[406402571,1771870390400,-157.0,0.00045299,30]
[406402572,1771870390423,-248.98,0.000453,30]
[406402573,1771870390449,-5242.24,0.000453,14]
[406402574,1771870390475,-250.0,0.0004536,30]
[406402575,1771870390499,-369.0,0.0004536,30]
[406402576,1771870390523,-164.0,0.00045372,30]
[406402577,1771870390547,-179.0,0.00045465,30]
[406402578,1771870390571,-450.0,0.000456,30]
[406402579,1771870390597,-450.0,0.000456,30]
[406402580,1771870390622,-389.0,0.000456,30]
[406402581,1771870390645,-12500.0,0.00045686,120]
[406402582,1771870390668,-1004.95,0.00045763,120]
[406402583,1771870390690,-320.5,0.00046,10]
[406402584,1771870390713,-12500.0,0.00046186,120]
[406402585,1771870390735,-1004.95,0.00046263,30]
[406402586,1771870390757,-490.1,0.00046305,120]
[406402587,1771870390779,-402.0,0.00046399,16]
[406402588,1771870390801,-500.0,0.00046575,120]
[406402589,1771870390823,-408.95334384,0.00046575,120]
[406402590,1771870390844,-501.63552986,0.00046575,120]
[406402591,1771870390868,-551.86,0.00046575,120]
[406402592,1771870390891,-500.0,0.00046575,120]
[406402593,1771870390914,-500.0,0.00046575,120]
[406402594,1771870390940,-556.53,0.00046575,120]
[406402595,1771870390968,-307.36847671,0.00046575,120]
[406402596,1771870390993,-500.0,0.00046575,120]
[406402597,1771870391022,-500.0,0.00046575,120]
[406402598,1771870391048,-670.64,0.00046575,120]
[406402599,1771870391072,-485.91610617,0.00046575,120]
[406402600,1771870391097,-500.0,0.00046575,120]
[406402601,1771870391120,-500.0,0.00046575,120]
[406402602,1771870391144,-1738.29,0.00046575,20]
[406402603,1771870391169,-500.0,0.00046575,120]
[406402604,1771870391196,-500.0,0.00046575,120]
[406402605,1771870391221,-500.0,0.00046575,120]
[406402606,1771870391243,-151.0,0.00046575,120]
[406402607,1771870391268,-500.0,0.00046575,120]
[406402608,1771870391294,-571.49,0.00046575,120]
[406402609,1771870391321,-2208.83,0.00046575,120]
[406402610,1771870391348,-604.731448,0.00046642,30]
[406402611,1771870391373,-604.731448,0.00046642,30]
[406402612,1771870391399,-12500.0,0.00046686,120]
[406402613,1771870391427,-209.0,0.00046761,30]
[406402614,1771870391453,-1004.95,0.00046763,30]
[406402615,1771870391480,-500.0,0.00046849,120]
[406402616,1771870391508,-551.86,0.00046849,120]
[406402617,1771870391539,-500.0,0.00046849,120]
[406402618,1771870391568,-178.06875442,0.00046849,120]
[406402619,1771870391597,-556.53,0.00046849,120]
[406402620,1771870391627,-500.0,0.00046849,120]
[406402621,1771870391654,-500.0,0.00046849,120]
[406402622,1771870391683,-670.64,0.00046849,120]
[406402623,1771870391711,-500.0,0.00046849,120]
[406402624,1771870391736,-1738.29,0.00046849,20]
[406402625,1771870391762,-445.49870254,0.00046849,120]
[406402626,1771870391786,-508.01280854,0.00046849,120]
[406402627,1771870391808,-500.0,0.00046849,120]
[406402628,1771870391831,-500.0,0.00046849,120]
[406402629,1771870391854,-571.49,0.00046849,120]
[406402630,1771870391878,-2208.83,0.00046849,120]
[406402631,1771870391900,-168.95,0.000469,14]
[406402632,1771870391927,-1000.0,0.00046942,120]
[406402633,1771870391950,-244.0,0.00046942,120]
[406402634,1771870391974,-1523.34260082,0.00046999,30]
[406402635,1771870391996,-237.09,0.00047094,14]
[406402636,1771870392019,-150.0,0.000471,60]
[406402637,1771870392042,-972.5554927,0.00047109,60]
[406402638,1771870392066,-500.0,0.00047123,120]
[406402639,1771870392090,-551.86,0.00047123,120]
[406402640,1771870392113,-500.0,0.00047123,120]
[406402641,1771870392136,-556.53,0.00047123,120]
[406402642,1771870392160,-500.0,0.00047123,120]
[406402643,1771870392277,-500.0,0.00047123,120]
[406402644,1771870392302,-670.64,0.00047123,120]
[406402645,1771870392324,-500.0,0.00047123,120]
[406402646,1771870392348,-1738.29,0.00047123,20]
[406402647,1771870392371,-500.0,0.00047123,120]
[406402648,1771870392394,-500.0,0.00047123,120]
[406402649,1771870392418,-571.49,0.00047123,120]
[406402650,1771870392455,-2208.83,0.00047123,120]
[406402651,1771870392481,-12500.0,0.00047186,120]
[406402652,1771870392505,-1004.95,0.00047263,30]
[406402653,1771870392532,-248.98,0.000473,30]
[406402654,1771870392557,-5242.24,0.000473,14]
[406402655,1771870392581,-500.0,0.00047397,120]
[406402656,1771870392606,-551.86,0.00047397,120]
[406402657,1771870392629,-500.0,0.00047397,120]
[406402658,1771870392652,-556.53,0.00047397,120]
[406402659,1771870392684,-500.0,0.00047397,120]
[406402660,1771870392707,-500.0,0.00047397,120]
[406402661,1771870392730,-670.64,0.00047397,120]
[406402662,1771870392753,-500.0,0.00047397,120]
[406402663,1771870392777,-1738.29,0.00047397,20]
[406402664,1771870392800,-500.0,0.00047397,120]
[406402665,1771870392822,-500.0,0.00047397,120]
[406402666,1771870392845,-571.49,0.00047397,120]
[406402667,1771870392870,-2208.83,0.00047397,120]
[406402668,1771870392894,-1004.95,0.00047526,30]
[406402669,1771870392918,-500.0,0.00047671,120]
[406402670,1771870392945,-551.86,0.00047671,120]
[406402671,1771870392969,-500.0,0.00047671,120]
[406402672,1771870392993,-556.53,0.00047671,120]
[406402673,1771870393017,-500.0,0.00047671,120]
[406402674,1771870393040,-500.0,0.00047671,120]
[406402675,1771870393063,-670.64,0.00047671,120]
[406402676,1771870393089,-454.24197972,0.00047671,120]
[406402677,1771870393112,-1738.29,0.00047671,20]
[406402678,1771870393135,-500.0,0.00047671,120]
[406402679,1771870393158,-213.01062438,0.00047671,120]
[406402680,1771870393180,-571.49,0.00047671,120]
[406402681,1771870393205,-2208.83,0.00047671,120]
[406402682,1771870393228,-12500.0,0.00047686,120]
[406402683,1771870393250,-1004.95,0.00047763,30]
[406402684,1771870393272,-15949.0,0.0004778,120]
[406402685,1771870393295,-402.0,0.00047796,16]
[406402686,1771870393318,-715.0,0.00047811,16]
[406402687,1771870393342,-162.0,0.00047813,30]
[406402688,1771870393365,-500.0,0.00047945,120]
[406402689,1771870393389,-551.86,0.00047945,120]
[406402690,1771870393413,-500.0,0.00047945,120]
[406402691,1771870393441,-556.53,0.00047945,120]
[406402692,1771870393467,-557.95697813,0.00047945,120]
[406402693,1771870393493,-500.0,0.00047945,120]
[406402694,1771870393517,-670.64,0.00047945,120]
[406402695,1771870393542,-1738.29,0.00047945,20]
[406402696,1771870393565,-500.0,0.00047945,120]
[406402697,1771870393588,-571.49,0.00047945,120]
[406402698,1771870393613,-2208.83,0.00047945,120]
[406402699,1771870393637,-234.0,0.00048065,120]
[406402700,1771870393660,-402.0,0.00048097,16]
[406402701,1771870393683,-402.0,0.00048108,16]
[406402702,1771870393706,-715.0,0.00048114,16]
[406402703,1771870393729,-390.0,0.00048118,16]
[406402704,1771870393751,-12500.0,0.00048186,120]
[406402705,1771870393775,-150.0,0.00048195,120]
[406402706,1771870393798,-262.0,0.00048195,120]
[406402707,1771870393821,-306.71888488,0.00048219,120]
[406402708,1771870393845,-551.86,0.00048219,120]
[406402709,1771870393868,-500.0,0.00048219,120]
[406402710,1771870393891,-556.53,0.00048219,120]
[406402711,1771870393915,-500.0,0.00048219,120]
[406402712,1771870393938,-670.64,0.00048219,120]
[406402713,1771870393962,-1738.29,0.00048219,20]
[406402714,1771870393985,-500.0,0.00048219,120]
[406402715,1771870394010,-571.49,0.00048219,120]
[406402716,1771870394034,-319.72491257,0.0004832,60]
[406402717,1771870394059,-715.0,0.0004838,31]
[406402718,1771870394083,-300.0,0.0004845,120]
[406402719,1771870394107,-300.0,0.0004845,120]
[406402720,1771870394130,-259.0,0.0004845,120]
[406402721,1771870394154,-551.86,0.00048493,120]
[406402722,1771870394179,-500.0,0.00048493,120]
[406402723,1771870394202,-556.53,0.00048493,120]
[406402724,1771870394225,-500.0,0.00048493,120]
[406402725,1771870394248,-670.64,0.00048493,120]
[406402726,1771870394272,-1738.29,0.00048493,20]
[406402727,1771870394296,-500.0,0.00048493,120]
[406402728,1771870394320,-571.49,0.00048493,120]
[406402729,1771870394343,-248.98,0.000486,30]
[406402730,1771870394367,-5242.24,0.000486,14]
[406402731,1771870394390,-12500.0,0.00048686,120]
[406402732,1771870394412,-2312.83697232,0.00048753,30]
[406402733,1771870394438,-394.0,0.00048755,31]
[406402734,1771870394461,-551.86,0.00048767,120]
[406402735,1771870394571,-489.82409265,0.00048767,120]
[406402736,1771870394596,-556.53,0.00048767,120]
[406402737,1771870394618,-500.0,0.00048767,120]
[406402738,1771870394641,-670.64,0.00048767,120]
[406402739,1771870394665,-1738.29,0.00048767,20]
[406402740,1771870394689,-500.0,0.00048767,120]
[406402741,1771870394712,-571.49,0.00048767,120]
[406402742,1771870394735,-2580.29,0.00048844,120]
[406402743,1771870394758,-1196.28686359,0.00048899,10]
[406402744,1771870394782,-295.75,0.00049,120]
[406402745,1771870394806,-49317.7501,0.00049,120]
[406402746,1771870394831,-500.0,0.00049035,10]
[406402747,1771870394855,-551.86,0.00049041,120]
[406402748,1771870394879,-556.53,0.00049041,120]
[406402749,1771870394903,-500.0,0.00049041,120]
[406402750,1771870394928,-670.64,0.00049041,120]
[406402751,1771870394952,-1738.29,0.00049041,20]
[406402752,1771870394976,-500.0,0.00049041,120]
[406402753,1771870395000,-571.49,0.00049041,120]
[406402754,1771870395026,-500.0,0.00049124,120]
[406402755,1771870395050,-500.0,0.00049124,120]
[406402756,1771870395073,-500.0,0.00049124,120]
[406402757,1771870395098,-500.0,0.00049124,120]
[406402758,1771870395121,-500.0,0.00049124,120]
[406402759,1771870395144,-500.0,0.00049124,120]
[406402760,1771870395168,-500.0,0.00049124,120]
[406402761,1771870395194,-500.0,0.00049124,120]
[406402762,1771870395218,-500.0,0.00049124,120]
[406402763,1771870395242,-500.0,0.00049124,120]
[406402764,1771870395264,-500.0,0.00049124,120]
[406402765,1771870395288,-500.0,0.00049124,120]
[406402766,1771870395311,-500.0,0.00049124,120]
[406402767,1771870395336,-500.0,0.00049124,120]
[406402768,1771870395360,-500.0,0.00049124,120]
[406402769,1771870395384,-500.0,0.00049124,120]
[406402770,1771870395408,-500.0,0.00049124,120]
[406402771,1771870395437,-500.0,0.00049124,120]
[406402772,1771870395461,-500.0,0.00049124,120]
[406402773,1771870395486,-500.0,0.00049124,120]
[406402774,1771870395512,-500.0,0.00049124,120]
[406402775,1771870395535,-500.0,0.00049124,120]
[406402776,1771870395559,-500.0,0.00049124,120]
[406402777,1771870395582,-500.0,0.00049124,120]
[406402778,1771870395605,-500.0,0.00049124,120]
[406402779,1771870395627,-500.0,0.00049124,120]
[406402780,1771870395652,-607.1107,0.00049124,120]
[406402781,1771870395676,-2292492.22775,0.00049162,30]
[406402782,1771870395756,1888.00000001,0.00053362,31]
[406402783,1771870395787,151.0,0.00053362,120]
[406402784,1771870395814,500.0,0.00053362,120]
[406402785,1771870395841,500.0,0.00053362,120]
[406402786,1771870395879,151.0,0.00053362,120]
[406402787,1771870395906,500.0,0.00053362,120]
[406402788,1771870395954,151.0,0.00053362,120]
[406402789,1771870395981,500.0,0.00053362,120]
[406402790,1771870396019,500.0,0.00053362,120]
[406402791,1771870396140,151.0,0.00053362,120]
[406402792,1771870396168,500.0,0.00053362,120]
[406402793,1771870396198,500.0,0.00053362,120]
[406402794,1771870396243,151.0,0.00053362,120]
[406402795,1771870396271,151.0,0.00053362,120]
[406402796,1771870396300,500.0,0.00053362,120]
[406402797,1771870396327,500.0,0.00053362,120]
[406402798,1771870396369,156.587,0.00053362,120]
[406402799,1771870396396,151.0,0.00053362,120]
[406402800,1771870396425,500.0,0.00053362,120]
[406402801,1771870396457,500.0,0.00053362,120]
[406402802,1771870396520,162.380719,0.00053362,120]
[406402803,1771870396580,500.0,0.00053362,120]
[406402804,1771870396609,500.0,0.00053362,120]
[406402805,1771870396786,500.0,0.00053362,120]
[406402806,1771870396815,168.3888056,0.00053362,120]
[406402807,1771870396862,500.0,0.00053362,120]
[406402808,1771870396891,174.61919141,0.00053362,120]
[406402809,1771870396941,500.0,0.00053362,120]
[406402810,1771870396970,181.08010149,0.00053362,120]
[406402811,1771870396999,500.0,0.00053362,120]
[406402812,1771870397028,187.78006525,0.00053362,120]
[406402813,1771870397058,500.0,0.00053362,120]
[406402814,1771870397091,194.72792766,0.00053362,120]
[406402815,1771870397119,500.0,0.00053362,120]
[406402816,1771870397160,201.93286099,0.00053362,120]
[406402817,1771870397188,500.0,0.00053362,120]
[406402818,1771870397231,209.40437684,0.00053362,120]
[406402819,1771870397259,500.0,0.00053362,120]
[406402820,1771870397295,217.15233878,0.00053362,120]
[406402821,1771870397337,225.18697532,0.00053362,120]
[406402822,1771870397377,233.51889341,0.00053362,120]
[406402823,1771870397412,242.15909246,0.00053362,120]
[406402824,1771870397924,2000.0,0.00053362,30]
[406402825,1771870398031,229.91157223,0.00053362,120]
[406402826,1771870398537,500.0,0.00053362,120]
[406402827,1771870398565,2074.0,0.00053362,30]
[406402828,1771870399180,2150.738,0.00053362,30]
[406402829,1771870399209,250.0,0.00053362,120]
[406402830,1771870399815,500.0,0.00053362,120]
[406402831,1771870399844,250.0,0.00053362,120]
[406402832,1771870399934,2000.0,0.00053362,120]
[406402833,1771870400238,500.0,0.00053362,120]
[406402834,1771870400420,250.0,0.00053362,120]
[406402835,1771870400463,2150.738,0.00053362,30]
[406402836,1771870400491,500.0,0.00053362,120]
[406402837,1771870400561,2000.0,0.00053362,120]
[406402838,1771870400852,500.0,0.00053362,120]
[406402839,1771870401045,250.0,0.00053362,120]
[406402840,1771870401076,500.0,0.00053362,120]
[406402841,1771870401105,500.0,0.00053362,120]
[406402842,1771870401178,2000.0,0.00053362,120]
[406402843,1771870401459,500.0,0.00053362,120]
[406402844,1771870401678,500.0,0.00053362,120]
[406402845,1771870401708,500.0,0.00053362,120]
[406402846,1771870401741,250.0,0.00053362,120]
[406402847,1771870401771,251.11897888,0.00053362,120]
[406402848,1771870401799,2000.0,0.00053362,120]
[406402849,1771870402084,500.0,0.00053362,120]
[406402850,1771870402195,266.69468078,0.00053362,120]
[406402851,1771870402268,250.0,0.00053362,120]
[406402852,1771870402312,500.0,0.00053362,120]
[406402853,1771870402341,500.0,0.00053362,120]
[406402854,1771870402369,250.0,0.00053362,120]
[406402855,1771870402401,2000.0,0.00053362,120]
[406402856,1771870402532,260.4103811,0.00053362,120]
[406402857,1771870402702,500.0,0.00053362,120]
[406402858,1771870402876,250.0,0.00053362,120]
[406402859,1771870402935,500.0,0.00053362,120]
[406402860,1771870402967,250.0,0.00053362,120]
[406402861,1771870402994,500.0,0.00053362,120]
[406402862,1771870403141,270.0455652,0.00053362,120]
[406402863,1771870403416,500.0,0.00053362,120]
[406402864,1771870403487,250.0,0.00053362,120]
[406402865,1771870403583,250.0,0.00053362,120]
[406402866,1771870403613,500.0,0.00053362,120]
[406402867,1771870403779,280.03725112,0.00053362,120]
[406402868,1771870403928,500.0,0.00053362,120]
[406402869,1771870404056,1000.0,0.00053362,120]
[406402870,1771870404103,250.0,0.00053362,120]
[406402871,1771870404187,250.0,0.00053362,120]
[406402872,1771870404271,500.0,0.00053362,120]
[406402873,1771870404419,290.39862941,0.00053362,120]
[406402874,1771870404532,500.0,0.00053362,120]
[406402875,1771870404893,500.0,0.00053362,120]
[406402876,1771870405052,290.39862941,0.00053362,120]
[406402877,1771870405134,500.0,0.00053362,120]
[406402878,1771870406037,250.0,0.00053362,120]
[406402879,1771870406638,250.0,0.00053362,120]
[406402880,1771870407225,250.0,0.00053362,120]
[406402881,1771870407840,250.0,0.00053362,120]
[406402882,1771870407869,250.0,0.00053362,120]
[406402883,1771870408480,250.0,0.00053362,120]
[406402884,1771870408510,250.0,0.00053362,120]
[406402885,1771870408538,250.0,0.00053362,120]
[406402886,1771870409067,250.0,0.00053362,120]
[406402887,1771870409122,250.0,0.00053362,120]
[406402888,1771870409175,250.0,0.00053362,120]
[406402889,1771870409671,250.0,0.00053362,120]
[406402890,1771870409786,250.0,0.00053362,120]
[406402891,1771870409831,250.0,0.00053362,120]
[406402892,1771870410051,2238.12812498,0.00053362,120]
[406402893,1771870410296,250.0,0.00053362,120]
[406402894,1771870410445,250.0,0.00053362,120]
[406402895,1771870410473,250.0,0.00053362,120]
[406402897,1771870410922,250.0,0.00053362,120]
[406402898,1771870411063,250.0,0.00053362,120]
[406402899,1771870411102,250.0,0.00053362,120]
[406402900,1771870411679,250.0,0.00053362,120]
[406402901,1771870411734,250.0,0.00053362,120]
[406402902,1771870412314,250.0,0.00053362,120]
[406402903,1771870412361,250.0,0.00053362,120]
[406402904,1771870412940,250.0,0.00053362,120]
[406402905,1771870413611,250.0,0.00053362,120]
[406402906,1771870414229,250.0,0.00053362,120]
[406402907,1771870414833,250.0,0.00053362,120]
[406402908,1771870415438,250.0,0.00053362,120]
[406402909,1771870416212,250.0,0.00053362,120]
[406402910,1771870416727,250.0,0.00053362,120]
[406402911,1771870417325,250.0,0.00053362,120]